[Event "44th Chess Olympiad Open 2022"]
[Site "Chennai"]
[Date "2022.08.06"]
[Round "8.52"]
[White "Frick, Renato"]
[Black "Munro, Allan"]
[Result "0-1"]
[ECO "B13"]
[WhiteElo "1900"]
[BlackElo "2008"]
[Annotator "TA"]
[PlyCount "40"]
[EventDate "2022.07.29"]
[EventType "team-tourn"]
[EventCountry "IND"]
[SourceTitle "playchess.com"]
[Source "ChessBase"]
[SourceQuality "1"]
[WhiteTeam "Liechtenstein"]
[BlackTeam "TTO"]
[WhiteTeamCountry "LIE"]
[TimeControl "40/5400+30:1800+30"]

{[%evp 11,40,15,31,11,18,0,1,3,32,23,33,28,24,21,39,31,49,-1,37,22,39,32,27,24,11,4,11,7,34,-399,-416]} 1. e4 {[%emt 0:00:07]} c6 {[%emt 0:00:17]} 2. d4 {[%emt 0:00:10]} d5 {[%emt 0:00:12]} 3. exd5 {[%emt 0:00:22]} cxd5 {[%emt 0:00:16]} 4. Bd3 {[%emt 0:00:07]} Nc6 {[%emt 0:00:49]} 5. c3 {[%emt 0:00:06]} Qc7 {[%emt 0:00:34]} 6. h3 {[%emt 0:03:23]} Nf6 {[%emt 0:00:46]} 7. Bg5 {[%emt 0:03:48] B13: Caro-Kann: Exchange Variation and Panov-Botvinnik Attack.} g6 {[%emt 0:06:18]} 8. Qf3 {[%emt 0:02:22]} Bg7 {[%emt 0:06:11][%cal Of6e4] [#]} 9. Nd2 $146 {[%emt 0:17:18] Against Ne4. The position is equal.} ({Predecessor:} 9. Ne2 O-O 10. Bxf6 Bxf6 11. Qxd5 e5 12. Qf3 Bg7 13. d5 Ne7 14. O-O f5 15. Bc2 {1-0 (65) Wehner,R (2042)-Mietner,W (1731) Playchess.com INT 2020}) 9... Qd6 {[%emt 0:23:14]} 10. Bf4 {[%emt 0:05:42]} Qd8 {[%emt 0:06:46]} 11. Qe2 {[%emt 0:15:03]} O-O {[%emt 0:09:15]} 12. Ngf3 {[%emt 0:09:32]} Nh5 {[%emt 0:07:47]} 13. Bh2 {[%emt 0:00:34]} Bh6 {[%emt 0:00:14]} 14. Ne5 {[%emt 0:14:20]} (14. O-O-O $14) 14... f6 {[%emt 0:06:30]} 15. Ng4 {[%emt 0:00:57]} Bf4 {[%emt 0:00:17]} 16. g3 {[%emt 0:03:43]} Bxd2+ {[%emt 0:05:35]} 17. Qxd2 {[%emt 0:03:39]} ({Don't play} 17. Kxd2 e5 18. dxe5 fxe5 $17) 17... e5 {[%emt 0:00:12]} 18. dxe5 {[%emt 0:00:28]} fxe5 {[%emt 0:00:12]} 19. O-O-O {[%emt 0:01:19]} Nf6 {[%emt 0:02:22]} 20. Qh6 $2 {[%emt 0:12:49][%mdl 8192] [#]} (20. Nh6+ $14 {keeps the upper hand.} Kg7 21. g4) 20... Bxg4 {[%emt 0:06:04] Weighted Error Value: White=0.63/Black=0.12 (very precise)} 0-1

[Event "44th Chess Olympiad Open 2022"]
[Site "Chennai"]
[Date "2022.08.06"]
[Round "8.57"]
[White "Forbes, Garry"]
[Black "Jingjang, Shin"]
[Result "0-1"]
[ECO "D00"]
[WhiteElo "1908"]
[BlackElo "1956"]
[Annotator "TA"]
[PlyCount "50"]
[EventDate "2022.07.29"]
[EventType "team-tourn"]
[EventCountry "IND"]
[SourceTitle "playchess.com"]
[Source "ChessBase"]
[SourceQuality "1"]
[WhiteTeam "Channel Islands"]
[BlackTeam "Thailand"]
[WhiteTeamCountry "JCI"]
[BlackTeamCountry "THA"]
[TimeControl "40/5400+30:1800+30"]

{[%evp 9,50,7,7,-5,0,0,4,0,2,-1,3,0,0,0,0,8,20,35,39,38,55,42,54,25,50,-15,40,-62,-72,-250,-246,-520,-473,-636,-248,-258,-258,-256,-247,-250,-245,-1320,-1285]} 1. d4 {[%emt 0:00:02]} d5 {[%emt 0:00:06]} 2. Nc3 {[%emt 0:00:01]} Nf6 {[%emt 0:01:14]} 3. Bf4 {[%emt 0:00:03]} c6 {[%emt 0:01:46]} 4. e3 {[%emt 0:00:27]} Qb6 {[%emt 0:02:35]} 5. Rb1 {[%emt 0:03:06]} Bf5 {[%emt 0:04:11]} 6. f3 {[%emt 0:03:08] D00: 1 d4 d5: Unusual lines.} e6 {[%emt 0:02:30]} 7. g4 {[%emt 0:00:02]} Bg6 {[%emt 0:00:03]} 8. h4 {[%emt 0:00:09] aiming for h5. The position is equal.} h6 {[%emt 0:03:15]} 9. Bd3 {[%emt 0:00:52]} Bxd3 {[%emt 0:01:57]} 10. cxd3 {[%emt 0:01:26]} c5 {[%emt 0:08:25]} 11. dxc5 {[%emt 0:01:06]} Bxc5 {[%emt 0:00:09]} 12. d4 {[%emt 0:00:05]} Bd6 {[%emt 0:00:11]} 13. Nge2 {[%emt 0:01:57]} Nbd7 {[%emt 0:10:38]} 14. Kf2 {[%emt 0:15:43] [#]} Bxf4 $146 {[%emt 0:09:26]} ({Predecessor:} 14... g6 15. Qd3 Rd8 16. Na4 Qc7 17. Rbc1 Qb8 18. Nc5 Nxc5 19. Rxc5 Nd7 20. Rc2 h5 {½-½ (52) Howell,D (2658)-Wadsworth,M (2416) Tornelo INT 2021}) 15. Nxf4 {[%emt 0:02:48]} O-O-O {[%emt 0:01:52][%cal Ba8d8,Bd8h8,Bh8h3][%mdl 32]} 16. Na4 {[%emt 0:03:23]} Qd6 {[%emt 0:01:45] Active counter play!} 17. b4 {[%emt 0:03:41]} (17. Nd3 $14) 17... g5 {[%emt 0:02:07]} (17... e5 $11 18. Ne2 (18. dxe5 Nxe5 19. Nc5 b6 $15) 18... Kb8) 18. hxg5 {[%emt 0:08:59]} (18. Nd3 $14) 18... hxg5 $15 {[%emt 0:00:21] And now ...Rxh1 would win.} 19. Rxh8 {[%emt 0:00:26] Now White is beyond hope.} (19. Nh5 $17) 19... Rxh8 $19 {[%emt 0:00:13] The board is on fire.} 20. Ng2 {[%emt 0:00:00]} (20. Qc2+ Kb8 21. Ng2) 20... Rh3 {[%emt 0:05:06]} 21. Qc2+ {[%emt 0:31:01]} Kb8 $2 {[%emt 0:00:26]} (21... Kd8 {Threatens to win with ...Qg3+.} 22. Nc5 Qg3+ 23. Kg1 Qh2+ 24. Kf2 e5 25. Nxb7+ Ke7) 22. Rc1 {[%emt 0:02:17][%csl Gc1][%cal Rc2c8]} Qg3+ {[%emt 0:00:17]} 23. Kg1 {[%emt 0:00:01][%csl Gc1][%cal Rc2c8]} Rh8 {[%emt 0:20:16] Prevents Qc8+.} 24. Nc5 {[%emt 0:00:04] [#]} Nb6 {[%emt 0:00:37] Strongly threatening ...Nc4.} 25. Qf2 $2 {[%emt 0:07:43] [#]} (25. Nd3) 25... Rh1+ $3 {[%emt 0:00:17][%mdl 512] Weighted Error Value: White=0.90/Black=0.33} 0-1

[Event "44th Chess Olympiad Open 2022"]
[Site "Chennai"]
[Date "2022.08.06"]
[Round "8.58"]
[White "Abdelhakiem Abdellatief Nogdal"]
[Black "Alrehaili, Ahmed Abdullah S"]
[Result "0-1"]
[ECO "B01"]
[WhiteElo "1960"]
[BlackElo "1986"]
[Annotator "TA"]
[PlyCount "80"]
[EventDate "2022.07.29"]
[EventType "team-tourn"]
[EventCountry "IND"]
[SourceTitle "playchess.com"]
[Source "ChessBase"]
[SourceQuality "1"]
[WhiteTeam "Sudan"]
[BlackTeam "KSA"]
[WhiteTeamCountry "SUD"]
[TimeControl "40/5400+30:1800+30"]

{[%evp 12,80,27,29,22,18,29,29,21,8,5,0,0,0,14,0,0,-41,-33,-27,-35,-50,-41,-41,-42,-53,-45,-192,-191,-189,-181,-196,-202,-260,-258,-246,-248,-314,-313,-327,-325,-328,-325,-347,-284,-355,-347,-440,-437,-622,-570,-863,-802,-1073,-1067,-1101,-1078,-1053,-936,-1033,-966,-6187,-6187,-6087,-6054,-2191,-2285,-6416,-6119,-29985,-29983]} 1. e4 {[%emt 0:00:19]} d5 {[%emt 0:00:07]} 2. exd5 {[%emt 0:00:21]} Nf6 {[%emt 0:00:04]} 3. Nf3 {[%emt 0:00:47]} Qxd5 {[%emt 0:00:06]} 4. Nc3 {[%emt 0:00:30]} Qa5 {[%emt 0:00:11]} 5. d4 {[%emt 0:00:16]} Bf5 {[%emt 0:00:08]} 6. Bd3 {[%emt 0:01:57]} e6 {[%emt 0:10:01]} 7. O-O {[%emt 0:03:28]} c6 {[%emt 0:02:20] B01: Scandinavian Defence.} 8. Re1 {[%emt 0:01:54] [#] Hoping for Re5.} Bxd3 {[%emt 0:01:48]} 9. Qxd3 {[%emt 0:00:22]} Be7 {[%emt 0:00:05] White has an edge.} 10. Bf4 {[%emt 0:01:35]} Nbd7 {[%emt 0:01:32]} 11. Rad1 {[%emt 0:01:45]} O-O {[%emt 0:01:12]} 12. Ne5 {[%emt 0:02:42] [#]} Rad8 $146 {[%emt 0:09:17]} ({Predecessor:} 12... Qd8 13. Qf3 Nd5 14. Nxd5 cxd5 15. c3 Nf6 16. Qh3 Bd6 17. Re3 Qb6 18. Rd2 Rac8 {1-0 (33) Viczencz,P (1764)-Sivicek,F (1167) Liptovsky Mikulas 2017}) 13. Qf3 {[%emt 0:04:09]} Nxe5 {[%emt 0:15:16]} 14. dxe5 {[%emt 0:09:21]} (14. Rxe5 Qb4 15. Rb1 Qxd4 $17) 14... Rxd1 {[%emt 0:01:03]} 15. Rxd1 {[%emt 0:00:28]} Nd5 {[%emt 0:00:03]} 16. Nxd5 {[%emt 0:04:57]} cxd5 {[%emt 0:00:18]} 17. Qb3 {[%emt 0:06:50]} b5 {[%emt 0:06:01]} 18. a3 {[%emt 0:03:15]} Rc8 {[%emt 0:01:55]} 19. Qd3 {[%emt 0:05:40] Now White is beyond hope.} (19. c3 $15) 19... Qa4 $19 {[%emt 0:02:38][%csl LRc2,LRf4]} 20. g3 {[%emt 0:12:49]} Qxc2 {[%emt 0:02:36]} ({Inferior is} 20... Rxc2 21. b3 Qe4 22. Qxe4 dxe4 23. Rd7 $15) 21. Qxc2 {[%emt 0:02:31]} Rxc2 {[%emt 0:00:02]} 22. Rc1 {[%emt 0:01:42]} Rxc1+ {[%emt 0:01:32]} ({But not} 22... Rxb2 23. Rc8+ Bf8 24. Be3 $18) 23. Bxc1 {[%emt 0:00:02][%mdl 4096] Endgame KB-KB} Bc5 {[%emt 0:00:31]} 24. Kf1 {[%emt 0:00:24]} Bd4 {[%emt 0:00:05]} 25. f4 {[%emt 0:00:34]} f6 {[%emt 0:00:01]} 26. exf6 {[%emt 0:00:18]} gxf6 {[%emt 0:00:03][%cal Bg7f6,Bf6e5,Be5e4][%mdl 32]} 27. Ke2 {[%emt 0:00:11]} Kf7 {[%emt 0:00:09]} 28. Kd3 {[%emt 0:01:22]} e5 {[%emt 0:00:02]} 29. g4 {[%emt 0:01:03]} Bc5 {[%emt 0:01:06]} 30. fxe5 {[%emt 0:06:44]} (30. f5 $142 e4+ 31. Ke2) 30... fxe5 {[%emt 0:00:04]} 31. b4 {[%emt 0:01:46]} e4+ {[%emt 0:00:22]} 32. Ke2 {[%emt 0:00:34]} Bb6 {[%emt 0:00:43]} 33. Bf4 {[%emt 0:00:35]} Ke6 {[%emt 0:00:57]} 34. h4 {[%emt 0:00:36]} d4 {[%emt 0:00:15]} 35. h5 {[%emt 0:01:26]} a5 {[%emt 0:03:55]} 36. Kd2 {[%emt 0:02:29]} axb4 {[%emt 0:04:28]} 37. axb4 {[%emt 0:00:05]} Bd8 {[%emt 0:00:41] Strongly threatening ...Be7.} 38. Kc2 {[%emt 0:01:55]} Be7 {[%emt 0:00:40]} 39. Kb3 {[%emt 0:04:17]} e3 {[%emt 0:02:15] [#] ( -> ...Kd5)} 40. h6 {[%emt 0:04:27]} Bh4 {[%emt 0:02:05] Weighted Error Value: White=1.07/Black=0.03 (flawless)} 0-1

[Event "44th Chess Olympiad Open 2022"]
[Site "Chennai"]
[Date "2022.08.06"]
[Round "8.59"]
[White "Florentiades, Michalis"]
[Black "Sakhawaty, Sepehr"]
[Result "1/2-1/2"]
[ECO "B51"]
[WhiteElo "1974"]
[BlackElo "1809"]
[Annotator "TA"]
[PlyCount "115"]
[EventDate "2022.07.29"]
[EventType "team-tourn"]
[EventCountry "IND"]
[SourceTitle "playchess.com"]
[Source "ChessBase"]
[SourceQuality "1"]
[WhiteTeam "Cyprus"]
[BlackTeam "Afghanistan"]
[WhiteTeamCountry "CYP"]
[BlackTeamCountry "AFG"]
[TimeControl "40/5400+30:1800+30"]

{[%evp 12,115,18,15,11,7,16,17,64,48,89,50,86,75,70,70,97,41,31,40,72,66,86,68,76,13,18,0,35,54,37,27,31,15,9,14,0,12,39,42,45,0,69,70,57,64,68,49,46,18,10,15,29,0,20,-32,14,28,21,37,212,0,8,0,17,13,19,9,116,109,162,8,8,8,8,0,59,59,97,60,74,0,0,0,0,0,0,0,0,0,0,0,0,0,0,0,0,0,0,0,0,0,0,0,0,-29968]} 1. e4 {[%emt 0:00:06]} c5 {[%emt 0:00:05]} 2. Nf3 {[%emt 0:00:08]} d6 {[%emt 0:00:04]} 3. Bb5+ {[%emt 0:00:09]} Nd7 {[%emt 0:00:59]} 4. c3 {[%emt 0:00:29]} a6 {[%emt 0:00:04]} 5. Ba4 {[%emt 0:00:16]} Ngf6 {[%emt 0:02:19]} 6. Qe2 {[%emt 0:00:16]} b5 {[%emt 0:04:48]} 7. Bc2 {[%emt 0:00:19]} Bb7 {[%emt 0:01:19] B51: Sicilian: Moscow Variation (3 Bb5+) without 3...Bd7.} 8. O-O {[%emt 0:03:41]} g6 $1 {[%emt 0:03:31][%mdl 4] is more profitable than 8...e6 at the moment.} 9. d4 {[%emt 0:02:37]} e5 {[%emt 0:04:16]} (9... Bg7 $11) 10. Rd1 {[%emt 0:02:55]} Qc7 {[%emt 0:02:17]} 11. d5 {[%emt 0:02:39]} c4 {[%emt 0:06:08] [#]} 12. b3 $146 {[%emt 0:07:20]} ({Predecessor:} 12. a4 Nc5 13. Na3 Qb6 14. Be3 Bg7 15. Nd2 O-O 16. b4 cxb3 17. Nxb3 bxa4 18. Nxc5 dxc5 {0-1 (48) Garcia Martin,M (2315)-Bodnaruk,A (2427) Antalya 2019}) 12... cxb3 {[%emt 0:00:33]} 13. axb3 {[%emt 0:00:30]} Bg7 {[%emt 0:00:56]} 14. Nfd2 {[%emt 0:06:02]} (14. Bd2 $1 $16) 14... O-O $14 {[%emt 0:01:48]} 15. Nf1 {[%emt 0:08:17]} Nb6 {[%emt 0:03:49]} 16. Bd2 {[%emt 0:04:12]} Nfd7 {[%emt 0:04:06]} 17. Na3 {[%emt 0:05:31]} f5 {[%emt 0:08:17]} 18. f3 {[%emt 0:05:59]} (18. c4 $16) 18... fxe4 {[%emt 0:04:44]} 19. fxe4 {[%emt 0:00:40]} Rf7 {[%emt 0:05:19]} ({Don't do} 19... Nxd5 20. exd5 e4 21. b4 $16 (21. Qxe4 Rae8 $11)) 20. c4 {[%emt 0:06:12]} bxc4 {[%emt 0:06:52]} 21. Nxc4 {[%emt 0:00:28]} Nxc4 {[%emt 0:01:10]} 22. Qxc4 {[%emt 0:01:41]} Qb6+ {[%emt 0:01:53]} 23. Kh1 {[%emt 0:04:19]} Rc8 {[%emt 0:01:25]} 24. Qd3 {[%emt 0:00:57]} Nf6 {[%emt 0:03:46] Strongly threatening ...Ng4.} 25. Ne3 {[%emt 0:02:18] Inhibits Ng4.} Rcf8 {[%emt 0:09:08]} 26. Rf1 {[%emt 0:03:25]} Nh5 {[%emt 0:01:28]} (26... Qd4 $11 27. Ra4 Qc5) 27. Rxf7 {[%emt 0:02:26]} Rxf7 {[%emt 0:00:01]} 28. Nc4 {[%emt 0:00:33]} Qd8 {[%emt 0:04:17]} 29. Rf1 {[%emt 0:02:28]} Nf4 {[%emt 0:02:32]} 30. Bxf4 {[%emt 0:08:25]} exf4 {[%emt 0:00:06]} 31. Qd2 {[%emt 0:00:42] Inhibits a5.} Bc8 {[%emt 0:02:06]} 32. Qb4 {[%emt 0:02:31]} (32. Rxf4 $2 Bh6 33. g3 Bxf4 34. gxf4 Qf8 $19) 32... Bf8 {[%emt 0:03:25]} 33. Qb6 {[%emt 0:02:52]} ({White should try} 33. Bd1 $11) 33... Qg5 {[%emt 0:03:11]} (33... Qxb6 $15 {might be stronger.} 34. Nxb6 Bg4) 34. Bd1 $11 {[%emt 0:02:28]} ({Wrong is} 34. Nxd6 $2 f3 $1 35. gxf3 Bh3 $19) 34... Qe7 {[%emt 0:03:33]} 35. Bf3 {[%emt 0:01:18][%cal Oe4e5]} g5 $2 {[%emt 0:00:53] [#]} (35... Qb7 $14) 36. h3 $2 {[%emt 0:02:49]} ({White has to play} 36. e5 $1 $18 {[%cal Rc4d6]} Qc7 37. e6 (37. exd6 Qxb6 38. Nxb6 Bd7 $14)) 36... Rg7 {[%emt 0:03:56][%cal Oh7h5]} 37. Qb8 {[%emt 0:03:28]} Bd7 {[%emt 0:01:03]} 38. e5 {[%emt 0:01:21]} dxe5 {[%emt 0:01:19]} 39. Nxe5 {[%emt 0:02:13]} Bb5 {[%emt 0:00:41] [#]} (39... Bf5 $11 {keeps the balance.}) 40. Rc1 $1 $16 {[%emt 0:01:08] White is much more active.} Qa7 {[%emt 0:01:06]} (40... Bd7 $16) 41. Qxa7 $2 {[%emt 0:06:16]} (41. Qc8 $18 {Threatens to win with d6.} Qe7 42. Qf5) 41... Rxa7 $11 {[%emt 0:00:01]} 42. Rc8 {[%emt 0:01:47] d6 is the strong threat.} Kg7 {[%emt 0:02:41]} 43. Nc6 {[%emt 0:03:31]} Bxc6 {[%emt 0:06:56]} ({Black should play} 43... Rb7 $11) 44. dxc6 {[%emt 0:00:21][%mdl 4096] Endgame Black must now prevent c7. KRB-KRB} Bd6 {[%emt 0:00:21] Inhibits c7.} 45. Rd8 {[%emt 0:01:37]} Be7 {[%emt 0:05:41]} 46. Rd7 {[%emt 0:03:50]} (46. Rd5 $16) 46... Rxd7 {[%emt 0:00:20] The position is equal.} 47. cxd7 {[%emt 0:00:04] KB-KB} a5 {[%emt 0:00:08]} 48. Bc6 {[%emt 0:00:30]} Kf6 {[%emt 0:01:12]} 49. Kg1 {[%emt 0:00:07]} Ke5 {[%emt 0:00:36]} 50. Kf2 {[%emt 0:00:34]} Kd6 {[%emt 0:00:21]} 51. Ba4 {[%emt 0:00:05]} h5 {[%emt 0:00:23]} 52. Kf3 {[%emt 0:00:09]} Ke5 {[%emt 0:00:43]} 53. Bc6 {[%emt 0:00:28]} Kd4 {[%emt 0:01:08]} 54. Ba4 {[%emt 0:02:00]} Bd8 {[%emt 0:01:39]} 55. Bc6 {[%emt 0:00:17]} Kc5 {[%emt 0:01:10]} 56. Ba4 {[%emt 0:00:12]} Kd4 {[%emt 0:00:08]} 57. Bc6 {[%emt 0:00:08]} Kc5 {[%emt 0:00:04]} 58. Ke4 $2 {[%emt 0:00:08][%mdl 40960] Weighted Error Value: White=0.25 (precise) /Black=0.28 (precise) . An unexpected result.} 1/2-1/2

[Event "44th Chess Olympiad Open 2022"]
[Site "Chennai"]
[Date "2022.08.06"]
[Round "8.59"]
[White "Sulaiman, Ahmad Ashrafi"]
[Black "Antoniou, Rafail"]
[Result "1-0"]
[ECO "D02"]
[WhiteElo "1953"]
[BlackElo "1817"]
[Annotator "TA"]
[PlyCount "55"]
[EventDate "2022.07.29"]
[EventType "team-tourn"]
[EventCountry "IND"]
[SourceTitle "playchess.com"]
[Source "ChessBase"]
[SourceQuality "1"]
[WhiteTeam "Afghanistan"]
[BlackTeam "Cyprus"]
[WhiteTeamCountry "AFG"]
[BlackTeamCountry "CYP"]
[TimeControl "40/5400+30:1800+30"]

{[%evp 9,55,0,7,-5,-4,-16,-24,-19,3,-29,0,0,17,0,46,-1,0,0,0,-8,31,14,39,31,125,126,107,65,56,79,63,35,108,18,89,0,89,-137,429,429,471,477,504,512,976,970,1295,1287]} 1. d4 {[%emt 0:00:06]} Nf6 {[%emt 0:00:21]} 2. Bf4 {[%emt 0:00:11]} d5 {[%emt 0:00:10]} 3. e3 {[%emt 0:00:18]} c5 {[%emt 0:00:32]} 4. c3 {[%emt 0:00:22]} e6 {[%emt 0:00:58]} 5. Nf3 {[%emt 0:00:34]} Bd6 {[%emt 0:00:47]} 6. Bg3 {[%emt 0:00:37] D02: 1 d4 d5 2 Nf3 sidelines, including 2...Nf6 3 g3 and 2...Nf6 3 Bf4.} Qc7 {[%emt 0:00:54]} 7. Ne5 {[%emt 0:00:28]} Nbd7 {[%emt 0:01:25]} 8. f4 {[%emt 0:00:36] [#] Black has an edge.} b5 $146 {[%emt 0:04:28]} ({Predecessor:} 8... Ne4 9. Nd2 Nxg3 10. hxg3 Nxe5 11. fxe5 Be7 12. Qg4 g6 13. Nf3 Qb6 14. O-O-O Bd7 {½-½ (93) Pakleza,Z (2489)-Lewtak,D (2383) Katowice 2021}) 9. Nd2 {[%emt 0:02:10]} Rb8 {[%emt 0:01:28]} 10. Bd3 {[%emt 0:03:30]} a5 {[%emt 0:04:37]} 11. O-O {[%emt 0:04:51]} Ba6 {[%emt 0:02:53]} (11... c4 $11 12. Bc2 Bb7) 12. Bf2 {[%emt 0:04:51]} (12. Nxd7 $14 Nxd7 13. Kh1) 12... c4 $11 {[%emt 0:14:51]} 13. Bc2 {[%emt 0:03:11]} b4 {[%emt 0:14:11]} 14. g4 {[%emt 0:02:38][%cal Bg2g4,Bg4g5][%mdl 32]} bxc3 {[%emt 0:15:33]} 15. bxc3 {[%emt 0:00:13]} Rb2 {[%emt 0:05:18]} 16. g5 {[%emt 0:00:43]} Bxe5 {[%emt 0:01:12]} (16... Nxe5 $2 17. fxe5 Bxe5 18. dxe5 $18) (16... Ng8 $1 $14) 17. fxe5 $16 {[%emt 0:00:35]} Ng4 {[%emt 0:00:30][%cal Oe8g8]} 18. Rc1 {[%emt 0:12:36]} Nxf2 {[%emt 0:08:19]} 19. Rxf2 {[%emt 0:00:11]} Qd8 {[%emt 0:07:19]} 20. Qh5 {[%emt 0:02:28][%csl Gf2][%cal Rh5f7]} g6 {[%emt 0:01:21] [#]} ({Black should try} 20... Qe7 $1 $14) 21. Qh6 $1 {[%emt 0:01:26] Hoping for e4. White is more active.} Qe7 {[%emt 0:02:16]} (21... Rxa2 $11 {keeps the balance.} 22. Bb1 Ra1) 22. Bb1 {[%emt 0:01:53]} (22. Ba4 $16) 22... Qf8 {[%emt 0:01:02]} (22... Rf8 $11 {remains equal.}) 23. Qh4 $2 {[%emt 0:01:23]} (23. Rcf1 $16 {stays on course.}) 23... Qg7 $2 {[%emt 0:01:56][%mdl 8192] [#] Loses the game.} (23... Qa3 $17 {[%cal Ob2d2] And now ...Rxd2! would win.} 24. Rc2 O-O) 24. Ne4 $18 {[%emt 0:01:57][%cal Bd2e4,Be4d6,Bd6f7][%mdl 544] White is clearly winning.} Rxf2 {[%emt 0:02:43]} (24... Rb6 25. Nd6+) 25. Nd6+ {[%emt 0:00:15]} Ke7 {[%emt 0:00:23]} 26. Qxf2 {[%emt 0:00:23]} Nxe5 {[%emt 0:00:03]} (26... Rb8 $142 27. e4 Bb7) 27. dxe5 {[%emt 0:01:24]} Qxe5 {[%emt 0:01:09]} 28. Nxf7 {[%emt 0:00:13] Weighted Error Value: White=0.37/Black=0.66} 1-0

[Event "44th Chess Olympiad Open 2022"]
[Site "Chennai"]
[Date "2022.08.06"]
[Round "8.60"]
[White "Abdulkadir Mohamed Warsame"]
[Black "Lama, Milan"]
[Result "1-0"]
[ECO "B38"]
[WhiteElo "1820"]
[BlackElo "2024"]
[Annotator "TA"]
[PlyCount "75"]
[EventDate "2022.07.29"]
[EventType "team-tourn"]
[EventCountry "IND"]
[SourceTitle "playchess.com"]
[Source "ChessBase"]
[SourceQuality "1"]
[WhiteTeam "Somalia"]
[BlackTeam "Nepal"]
[WhiteTeamCountry "SOM"]
[BlackTeamCountry "NEP"]
[TimeControl "40/5400+30:1800+30"]

{[%evp 18,75,0,4,18,25,26,18,21,-20,-34,-14,-14,-17,-23,-25,-13,-29,-27,-9,-12,-29,0,0,0,0,0,-102,-18,-18,0,-2,0,-34,-41,-77,0,-39,-38,-112,-95,-450,97,86,85,84,149,10,188,112,107,71,58,49,327,300,2135,1786,29992,29993]} 1. c4 {[%emt 0:00:13]} c5 {[%emt 0:00:05]} 2. Nf3 {[%emt 0:00:20]} g6 {[%emt 0:00:11]} 3. d4 {[%emt 0:02:17]} cxd4 {[%emt 0:00:09]} 4. Nxd4 {[%emt 0:00:07]} Bg7 {[%emt 0:00:17]} 5. e4 {[%emt 0:00:55]} Nc6 {[%emt 0:00:26]} 6. Be3 {[%emt 0:00:18]} Nf6 {[%emt 0:00:20]} 7. Nc3 {[%emt 0:00:15]} d6 {[%emt 0:00:57]} 8. Nxc6 {[%emt 0:03:09]} bxc6 {[%emt 0:00:07]} 9. Be2 {[%emt 0:00:21]} O-O {[%emt 0:00:59]} 10. O-O {[%emt 0:00:41]} a5 {[%emt 0:04:11] B38: Sicilian: Maroczy Bind with 5...Bg7 and 7...0-0.} 11. Rc1 {[%emt 0:03:37]} Rb8 {[%emt 0:01:18] [#]} 12. Qc2 $146 {[%emt 0:05:57]} ({Predecessor:} 12. b3 a4 13. Nxa4 Nxe4 14. Bd3 f5 15. f3 Nf6 16. c5 d5 17. Nb6 e5 18. a4 f4 19. Bf2 e4 20. fxe4 Nxe4 21. Qc2 Bf5 22. Rcd1 Qg5 23. Kh1 Rbe8 24. Bg1 Ng3+ {0-1 (24) Savitsky,V-Hermlin,A (2300) Oulu 1997}) 12... Qc7 {[%emt 0:14:24] The position is equal.} 13. c5 {[%emt 0:10:59]} d5 $1 {[%emt 0:04:38]} 14. exd5 {[%emt 0:00:54]} Nxd5 {[%emt 0:01:01]} 15. Nxd5 {[%emt 0:00:57]} cxd5 {[%emt 0:02:23]} 16. b3 {[%emt 0:01:28]} e5 {[%emt 0:01:02]} 17. Bd2 {[%emt 0:00:42]} Bf5 {[%emt 0:02:28]} 18. Qc3 {[%emt 0:02:48]} Ra8 {[%emt 0:03:56]} 19. Qg3 {[%emt 0:09:42]} Rfc8 {[%emt 0:05:52]} 20. a3 {[%emt 0:04:13]} Qe7 {[%emt 0:08:14]} 21. b4 {[%emt 0:04:07]} axb4 {[%emt 0:02:28]} 22. Bxb4 {[%emt 0:08:36]} (22. axb4 $11 {was the only way to keep the balance.} Ra2 23. Rfd1) 22... e4 {[%emt 0:03:06]} (22... Qb7 $17 23. Rfe1 Be6) 23. c6 $11 {[%emt 0:07:11]} Qe6 {[%emt 0:02:06]} 24. Bb5 {[%emt 0:00:33]} (24. c7 Be5 25. Qg5 f6 $17) 24... Bb2 {[%emt 0:17:21]} 25. Rc2 {[%emt 0:00:31]} Be5 {[%emt 0:03:19]} 26. Qh4 {[%emt 0:13:11]} d4 {[%emt 0:06:44]} (26... f6 $17) 27. Rfc1 {[%emt 0:03:37]} d3 {[%emt 0:04:39]} 28. Rd2 {[%emt 0:00:10]} (28. Rc4 $15) 28... Bd4 $17 {[%emt 0:01:12]} 29. Bxd3 $2 {[%emt 0:06:23][%mdl 8192]} (29. Qf4 $17) 29... Bxf2+ $2 {[%emt 0:04:20]} 30. Rxf2 $16 {[%emt 0:00:24]} ({Wrong is} 30. Qxf2 $2 e3 31. Qf4 exd2 32. Qxd2 Bxd3 33. Qxd3 Rxc6 $19) 30... exd3 {[%emt 0:00:56]} 31. c7 {[%emt 0:02:22]} Qb6 {[%emt 0:04:37] [#]} (31... h5 $142) 32. Qf4 {[%emt 0:04:34]} (32. Rc5 $1 $16) 32... Qe6 $2 {[%emt 0:01:10] [#]} (32... Ra7 $11) 33. Qd4 {[%emt 0:01:21]} ({Better is} 33. Rc4 $1 $18) 33... Qd7 {[%emt 0:00:46]} 34. Qf6 {[%emt 0:00:59] Intending Bc3 and mate. White is much more active.} Qe6 {[%emt 0:00:29]} 35. Qc3 $40 {[%emt 0:00:51][%mdl 128] White attacks.} Ra7 $2 {[%emt 0:01:05][%mdl 8192]} (35... Ra6 $14) 36. Qd4 $18 {[%emt 0:01:10]} Raxc7 {[%emt 0:00:39]} (36... Raa8 37. Bc3 f6) 37. Rxc7 {[%emt 0:00:25]} Rxc7 {[%emt 0:00:23]} 38. Qd8+ {[%emt 0:00:07] Weighted Error Value: White=0.53/Black=0.83} 1-0